fUSD/lending_fUSD_20250611
["ID","MTS","AMOUNT","RATE_DAILY","PERIOD"]
[365434944,1749671438408,-300.18,0.0001808,2]
[365434945,1749671438427,-300.18,0.0001808,2]
[365434946,1749671438436,-302.1,0.0001808,2]
[365434947,1749671438446,-305.9,0.0001808,2]
[365434948,1749671438455,-303.93,0.0001808,2]
[365434949,1749671438465,-302.12,0.0001808,2]
[365434950,1749671438475,-204.11015764,0.0001809,2]
[365434951,1749671438490,-100.93984236,0.0001809,2]
[365434952,1749671438499,-300.84,0.0001809,2]
[365434953,1749671438509,-302.3,0.0001811,2]
[365434954,1749671438518,-304.96,0.0001811,2]
[365434955,1749671438528,-305.31,0.00018111,2]
[365434956,1749671438537,-250.0,0.00018136,2]
[365434957,1749671438547,-305.8,0.00018139,2]
[365434958,1749671438556,-104.85015764,0.00018148,2]
[365434959,1749671438576,-561.14984236,0.00018148,2]
[365434960,1749671438585,-500.0,0.00018233,2]
[365434961,1749671438594,-500.0,0.00018233,2]
[365434962,1749671438603,-500.0,0.00018233,2]
[365434963,1749671438612,-466.65692583,0.00018233,2]
[365434967,1749671440006,-33.34307417,0.00018233,2]
[365434968,1749671440017,-380.62588534,0.00018233,2]
[365434969,1749671440026,-500.0,0.00018233,2]
[365434970,1749671440036,-500.0,0.00018233,2]
[365434971,1749671440046,-500.0,0.00018233,2]
[365434972,1749671440057,-322.07340101,0.00018233,2]
[365434973,1749671440066,-403.18091451,0.00018233,2]
[365434974,1749671440075,-286.13424758,0.00018233,2]
[365434975,1749671440085,-1306.11,0.00018234,2]
[365434976,1749671440095,-166.52,0.00018288,2]
[365434977,1749671440105,-204.0,0.00018331,3]
[365434978,1749671440114,-275.82036,0.00018331,2]
[365434979,1749671440123,-5451.87,0.00018356,2]
[365434980,1749671440133,-400.0,0.000186,6]
[365434981,1749671440143,-137.3221174,0.00018636,2]
[365434982,1749671440218,-13.6778826,0.00018636,2]
[365434983,1749671440227,-300.19,0.00018648,2]
[365434984,1749671440236,-305.77,0.00018648,2]
[365434985,1749671440246,-303.58,0.00018648,2]
[365434986,1749671440255,-303.21,0.00018648,2]
[365434987,1749671440265,-300.64,0.00018648,2]
[365434988,1749671440274,-303.55,0.00018648,2]
[365434989,1749671440284,-305.71,0.00018648,2]
[365434990,1749671440293,-304.27,0.00018648,2]
[365434991,1749671440302,-304.01,0.00018648,2]
[365434992,1749671440311,-304.32,0.00018648,2]
[365434993,1749671440320,-302.92,0.00018648,2]
[365434994,1749671440330,-303.31,0.00018648,2]
[365434995,1749671440339,-800.0,0.000187,6]
[365434996,1749671440347,-305.24,0.00018724,2]
[365434997,1749671440356,-375.0,0.00018795,2]
[365434999,1749671440366,-1200.0,0.000188,6]
[365435000,1749671440375,-151.0,0.00018869,2]
[365435001,1749671440384,-1957.856,0.00018869,2]
[365435002,1749671440393,-207.4,0.00018869,2]
[365435003,1749671440403,-789.99284083,0.00018899,2]
[365435004,1749671440412,-1700.0,0.000189,6]
[365435005,1749671440422,-200.36371938,0.000189,2]
[365435006,1749671440431,-2030.296672,0.00018924,2]
[365435007,1749671440441,-200.36371938,0.0001895,2]
[365435008,1749671440451,-2105.41764886,0.00018979,2]
[365435009,1749671440460,-637.23,0.00019,7]
[365435010,1749671440470,-500.0,0.00019,7]
[365435011,1749671440479,-500.0,0.00019,7]
[365435012,1749671440488,-500.0,0.00019,7]
[365435013,1749671440498,-500.0,0.00019,7]
[365435014,1749671440508,-500.0,0.00019,7]
[365435015,1749671440517,-500.0,0.00019,7]
[365435016,1749671440527,-500.0,0.00019,7]
[365435017,1749671440537,-500.0,0.00019,7]
[365435018,1749671440546,-162.07,0.00019,7]
[365435019,1749671440556,-200.36371938,0.00019,2]
[365435020,1749671440565,-310.25626523,0.00019014,2]
[365435021,1749671440575,-2183.31810187,0.00019034,2]
[365435022,1749671440585,-205.05606195,0.00019047,2]
[365435023,1749671440594,-200.36371938,0.0001905,2]
[365435024,1749671440603,-310.25626523,0.00019068,2]
[365435025,1749671440613,-179.95393948,0.00019078,2]
[365435026,1749671440623,-617.88517381,0.00019078,2]
[365435027,1749671440633,-1651.82506742,0.00019078,2]
[365435028,1749671440642,-305.92,0.00019078,2]
[365435029,1749671440651,-300.87,0.00019078,2]
[365435030,1749671440660,-305.15,0.00019078,2]
[365435031,1749671440670,-304.73,0.00019078,2]
[365435032,1749671440680,-590.72,0.00019078,2]
[365435033,1749671440690,-2264.10087164,0.00019089,2]
[365435034,1749671440700,-1000.0,0.000191,2]
[365435035,1749671440710,-200.36371938,0.000191,2]
[365435036,1749671440719,-1065.713164,0.00019115,2]
[365435037,1749671440729,-2347.87260389,0.00019144,2]
[365435038,1749671440738,-200.36371938,0.0001915,2]
[365435039,1749671440747,-310.25626523,0.00019151,2]
[365435040,1749671440757,-617.88517378,0.00019169,2]
[365435041,1749671440767,-1651.82506738,0.00019169,2]
[365435042,1749671440776,-995.3482,0.00019177,2]
[365435043,1749671440786,-1001.5382,0.00019177,2]
[365435044,1749671440795,-171.01528961,0.00019177,2]
[365435045,1749671440804,-599.16602049,0.00019177,2]
[365435046,1749671440814,-165.346485,0.00019178,2]
[365435047,1749671440824,-480.0,0.00019178,2]
[365435048,1749671440833,-193.59266084,0.00019178,2]
[365435049,1749671440843,-420.0,0.00019178,2]
[365435050,1749671440853,-243.13078287,0.00019178,2]
[365435051,1749671440862,-300.0,0.00019178,2]
[365435052,1749671440871,-458.34093824,0.00019178,2]
[365435053,1749671440881,-480.0,0.00019178,2]
[365435054,1749671440894,-215.68026786,0.00019178,2]
[365435055,1749671440904,-480.0,0.00019178,2]
[365435056,1749671440914,-480.0,0.00019178,2]
[365435057,1749671440923,-480.0,0.00019178,2]
[365435058,1749671440933,-490.0,0.00019178,2]
[365435059,1749671440944,-480.0,0.00019178,2]
[365435060,1749671440954,-473.74737263,0.00019178,2]
[365435061,1749671440963,-480.0,0.00019178,2]
[365435062,1749671440973,-480.0,0.00019178,2]
[365435063,1749671440982,-490.0,0.00019178,2]
[365435064,1749671440992,-490.0,0.00019178,2]
[365435065,1749671441002,-480.0,0.00019178,2]
[365435066,1749671441011,-480.0,0.00019178,2]
[365435067,1749671441021,-267.49371581,0.00019178,2]
[365435068,1749671441030,-480.0,0.00019178,2]
[365435069,1749671441040,-636.81,0.00019178,2]
[365435070,1749671441050,-490.0,0.00019178,2]
[365435071,1749671441060,-480.0,0.00019178,2]
[365435072,1749671441070,-490.0,0.00019178,2]
[365435073,1749671441079,-490.0,0.00019178,2]
[365435074,1749671441089,-559.4,0.00019178,2]
[365435075,1749671441098,-490.0,0.00019178,2]
[365435076,1749671441108,-490.0,0.00019178,2]
[365435077,1749671441118,-480.0,0.00019178,2]
[365435078,1749671441128,-263.76350653,0.00019178,2]
[365435079,1749671441138,-490.0,0.00019178,2]
[365435080,1749671441147,-490.0,0.00019178,2]
[365435081,1749671441156,-480.0,0.00019178,2]
[365435082,1749671441165,-490.0,0.00019178,2]
[365435083,1749671441174,-480.0,0.00019178,2]
[365435084,1749671441183,-480.0,0.00019178,2]
[365435085,1749671441194,-230.27866346,0.00019178,2]
[365435086,1749671441204,-490.0,0.00019178,2]
[365435087,1749671441213,-480.0,0.00019178,2]
[365435088,1749671441223,-490.0,0.00019178,2]
[365435089,1749671441232,-490.0,0.00019178,2]
[365435090,1749671441241,-490.0,0.00019178,2]
[365435091,1749671441250,-490.0,0.00019178,2]
[365435092,1749671441260,-460.0,0.00019178,2]
[365435093,1749671441270,-480.0,0.00019178,2]
[365435094,1749671441279,-480.0,0.00019178,2]
[365435095,1749671441288,-490.0,0.00019178,2]
[365435096,1749671441298,-480.0,0.00019178,2]
[365435097,1749671441307,-490.0,0.00019178,2]
[365435098,1749671441317,-490.0,0.00019178,2]
[365435099,1749671441326,-490.0,0.00019178,2]
[365435100,1749671441335,-490.0,0.00019178,2]
[365435101,1749671441345,-430.0,0.00019178,2]
[365435102,1749671441355,-490.0,0.00019178,2]
[365435103,1749671441364,-490.0,0.00019178,2]
[365435104,1749671441373,-490.0,0.00019178,2]
[365435105,1749671441383,-490.0,0.00019178,2]
[365435106,1749671441392,-480.0,0.00019178,2]
[365435107,1749671441401,-490.0,0.00019178,2]
[365435108,1749671441410,-490.0,0.00019178,2]
[365435109,1749671441419,-370.0,0.00019178,2]
[365435110,1749671441429,-500.0,0.00019178,2]
[365435111,1749671441441,-490.0,0.00019178,2]
[365435112,1749671441450,-480.0,0.00019178,2]
[365435113,1749671441460,-480.0,0.00019178,2]
[365435114,1749671441469,-480.0,0.00019178,2]
[365435115,1749671441479,-490.0,0.00019178,2]
[365435116,1749671441488,-490.0,0.00019178,2]
[365435117,1749671441497,-480.0,0.00019178,2]
[365435118,1749671441507,-490.0,0.00019178,2]
[365435119,1749671441516,-500.0,0.00019178,2]
[365435120,1749671441525,-179.83105169,0.00019178,2]
[365435121,1749671441534,-480.0,0.00019178,2]
[365435122,1749671441543,-490.0,0.00019178,2]
[365435123,1749671441552,-490.0,0.00019178,2]
[365435124,1749671441561,-490.0,0.00019178,2]
[365435125,1749671441570,-490.0,0.00019178,2]
[365435126,1749671441579,-480.0,0.00019178,2]
[365435127,1749671441588,-604.48,0.00019178,2]
[365435128,1749671441597,-490.0,0.00019178,2]
[365435129,1749671441606,-480.0,0.00019178,2]
[365435130,1749671441616,-490.0,0.00019178,2]
[365435131,1749671441625,-490.0,0.00019178,2]
[365435132,1749671441635,-307.47562714,0.00019178,2]
[365435133,1749671441644,-245.8903014,0.00019178,2]
[365435134,1749671441653,-490.0,0.00019178,2]
[365435135,1749671441663,-508.87334993,0.00019178,2]
[365435136,1749671441672,-490.0,0.00019178,2]
[365435137,1749671441681,-490.0,0.00019178,2]
[365435138,1749671441692,-490.0,0.00019178,2]
[365435139,1749671441702,-490.0,0.00019178,2]
[365435140,1749671441711,-490.0,0.00019178,2]
[365435141,1749671441720,-480.0,0.00019178,2]
[365435142,1749671441730,-422.44317901,0.00019178,2]
[365435143,1749671441739,-480.0,0.00019178,2]
[365435144,1749671441749,-490.0,0.00019178,2]
[365435145,1749671441758,-490.0,0.00019178,2]
[365435146,1749671441768,-480.0,0.00019178,2]
[365435147,1749671441777,-480.0,0.00019178,2]
[365435148,1749671441787,-480.0,0.00019178,2]
[365435149,1749671441796,-490.0,0.00019178,2]
[365435150,1749671441805,-500.0,0.00019178,2]
[365435151,1749671441814,-490.0,0.00019178,2]
[365435152,1749671441823,-490.0,0.00019178,2]
[365435153,1749671441833,-480.0,0.00019178,2]
[365435154,1749671441842,-490.0,0.00019178,2]
[365435155,1749671441852,-480.0,0.00019178,2]
[365435156,1749671441861,-480.0,0.00019178,2]
[365435157,1749671441871,-490.0,0.00019178,2]
[365435158,1749671441880,-490.0,0.00019178,2]
[365435159,1749671441891,-272.41734002,0.00019178,2]
[365435160,1749671441900,-490.0,0.00019178,2]
[365435161,1749671441910,-480.0,0.00019178,2]
[365435162,1749671441919,-421.77582201,0.00019178,2]
[365435163,1749671441928,-368.96293989,0.00019178,2]
[365435164,1749671441939,-490.0,0.00019178,2]
[365435165,1749671441949,-290.31651313,0.00019178,2]
[365435166,1749671441959,-490.0,0.00019178,2]
[365435167,1749671441970,-480.0,0.00019178,2]
[365435168,1749671441980,-490.0,0.00019178,2]
[365435169,1749671441989,-490.0,0.00019178,2]
[365435170,1749671441999,-480.0,0.00019178,2]
[365435171,1749671442009,-490.0,0.00019178,2]
[365435172,1749671442019,-480.0,0.00019178,2]
[365435173,1749671442029,-490.0,0.00019178,2]
[365435174,1749671442039,-480.0,0.00019178,2]
[365435175,1749671442048,-490.0,0.00019178,2]
[365435176,1749671442058,-490.0,0.00019178,2]
[365435177,1749671442068,-480.0,0.00019178,2]
[365435178,1749671442078,-490.0,0.00019178,2]
[365435179,1749671442088,-610.89471364,0.00019178,2]
[365435180,1749671442098,-490.0,0.00019178,2]
[365435181,1749671442108,-480.0,0.00019178,2]
[365435182,1749671442117,-480.0,0.00019178,2]
[365435183,1749671442127,-480.0,0.00019178,2]
[365435184,1749671442137,-490.0,0.00019178,2]
[365435185,1749671442148,-480.0,0.00019178,2]
[365435186,1749671442158,-490.0,0.00019178,2]
[365435187,1749671442168,-480.0,0.00019178,2]
[365435188,1749671442178,-490.0,0.00019178,2]
[365435189,1749671442190,-480.0,0.00019178,2]
[365435190,1749671442199,-480.0,0.00019178,2]
[365435191,1749671442209,-490.0,0.00019178,2]
[365435192,1749671442219,-480.0,0.00019178,2]
[365435193,1749671442228,-490.0,0.00019178,2]
[365435194,1749671442238,-480.0,0.00019178,2]
[365435195,1749671442248,-480.0,0.00019178,2]
[365435196,1749671442257,-480.0,0.00019178,2]
[365435197,1749671442266,-490.0,0.00019178,2]
[365435198,1749671442276,-480.0,0.00019178,2]
[365435199,1749671442285,-490.0,0.00019178,2]
[365435200,1749671442294,-480.0,0.00019178,2]
[365435201,1749671442303,-443.35870455,0.00019178,2]
[365435202,1749671442312,-490.0,0.00019178,2]
[365435203,1749671442322,-480.0,0.00019178,2]
[365435204,1749671442331,-425.50736585,0.00019178,2]
[365435205,1749671442340,-490.0,0.00019178,2]
[365435206,1749671442349,-480.0,0.00019178,2]
[365435207,1749671442359,-480.0,0.00019178,2]
[365435208,1749671442368,-480.0,0.00019178,2]
[365435209,1749671442378,-480.0,0.00019178,2]
[365435210,1749671442394,-348.56889125,0.00019178,2]
[365435211,1749671442417,-480.0,0.00019178,2]
[365435212,1749671442431,-480.0,0.00019178,2]
[365435213,1749671442441,-480.0,0.00019178,2]
[365435214,1749671442450,-490.0,0.00019178,2]
[365435215,1749671442459,-480.0,0.00019178,2]
[365435216,1749671442468,-480.0,0.00019178,2]
[365435217,1749671442477,-480.0,0.00019178,2]
[365435218,1749671442487,-480.0,0.00019178,2]
[365435219,1749671442497,-490.0,0.00019178,2]
[365435221,1749671442506,-208.74,0.00019178,2]
[365435222,1749671442515,-490.0,0.00019178,2]
[365435223,1749671442525,-480.0,0.00019178,2]
[365435224,1749671442535,-480.0,0.00019178,2]
[365435225,1749671442544,-337.1,0.00019178,2]
[365435226,1749671442554,-480.0,0.00019178,2]
[365435227,1749671442563,-490.0,0.00019178,2]
[365435228,1749671442572,-490.0,0.00019178,2]
[365435229,1749671442582,-480.0,0.00019178,2]
[365435230,1749671442592,-490.0,0.00019178,2]
[365435231,1749671442601,-443.10238964,0.00019178,2]
[365435232,1749671442610,-490.0,0.00019178,2]
[365435233,1749671442619,-480.0,0.00019178,2]
[365435234,1749671442629,-490.0,0.00019178,2]
[365435235,1749671442638,-480.0,0.00019178,2]
[365435236,1749671442648,-490.0,0.00019178,2]
[365435237,1749671442657,-490.0,0.00019178,2]
[365435238,1749671442666,-480.0,0.00019178,2]
[365435239,1749671442676,-490.0,0.00019178,2]
[365435240,1749671442685,-490.0,0.00019178,2]
[365435242,1749671442698,-423.09131802,0.00019178,2]
[365435243,1749671442708,-490.0,0.00019178,2]
[365435244,1749671442718,-480.0,0.00019178,2]
[365435245,1749671442727,-480.0,0.00019178,2]
[365435247,1749671442737,-490.0,0.00019178,2]
[365435248,1749671442746,-480.0,0.00019178,2]
[365435249,1749671442922,-480.0,0.00019178,2]
[365435250,1749671442931,-480.0,0.00019178,2]
[365435251,1749671442944,-480.0,0.00019178,2]
[365435252,1749671442953,-490.0,0.00019178,2]
[365435253,1749671442963,-490.0,0.00019178,2]
[365435254,1749671442974,-480.0,0.00019178,2]
[365435255,1749671442984,-480.0,0.00019178,2]
[365435256,1749671442993,-490.0,0.00019178,2]
[365435257,1749671443003,-386.18513415,0.00019178,2]
[365435258,1749671443013,-490.0,0.00019178,2]
[365435260,1749671443022,-490.0,0.00019178,2]
[365435261,1749671443031,-480.0,0.00019178,2]
[365435262,1749671443041,-480.0,0.00019178,2]
[365435263,1749671443050,-490.0,0.00019178,2]
[365435264,1749671443060,-490.0,0.00019178,2]
[365435265,1749671443069,-490.0,0.00019178,2]
[365435266,1749671443079,-480.0,0.00019178,2]
[365435267,1749671443088,-490.0,0.00019178,2]
[365435268,1749671443098,-490.0,0.00019178,2]
[365435269,1749671443107,-480.0,0.00019178,2]
[365435270,1749671443116,-490.0,0.00019178,2]
[365435272,1749671443125,-480.0,0.00019178,2]
[365435274,1749671443135,-439.18212691,0.00019178,2]
[365435276,1749671443144,-480.0,0.00019178,2]
[365435278,1749671443153,-480.0,0.00019178,2]
[365435279,1749671443162,-480.0,0.00019178,2]
[365435280,1749671443171,-490.0,0.00019178,2]
[365435281,1749671443180,-480.0,0.00019178,2]
[365435282,1749671443189,-480.0,0.00019178,2]
[365435283,1749671443198,-490.0,0.00019178,2]
[365435284,1749671443207,-500.0,0.00019178,2]
[365435285,1749671443216,-490.0,0.00019178,2]
[365435286,1749671443224,-505.14,0.00019178,2]
[365435287,1749671443233,-150.0,0.00019178,2]
[365435288,1749671443242,-480.0,0.00019178,2]
[365435289,1749671443251,-490.0,0.00019178,2]
[365435290,1749671443260,-500.0,0.00019178,2]
[365435291,1749671443269,-480.0,0.00019178,2]
[365435292,1749671443278,-490.0,0.00019178,2]
[365435293,1749671443287,-150.0,0.00019178,2]
[365435294,1749671443296,-480.0,0.00019178,2]
[365435295,1749671443311,-490.0,0.00019178,2]
[365435296,1749671443323,-500.0,0.00019178,2]
[365435297,1749671443332,-490.0,0.00019178,2]
[365435298,1749671443341,-480.0,0.00019178,2]
[365435299,1749671443351,-490.0,0.00019178,2]
[365435300,1749671443360,-592.0089908,0.00019178,2]
[365435301,1749671443369,-480.0,0.00019178,2]
[365435302,1749671443378,-150.0,0.00019178,2]
[365435303,1749671443387,-490.0,0.00019178,2]
[365435304,1749671443395,-500.0,0.00019178,2]
[365435305,1749671443404,-490.0,0.00019178,2]
[365435306,1749671443413,-533.32904187,0.00019178,2]
[365435307,1749671443422,-500.0,0.00019178,2]
[365435308,1749671443431,-490.0,0.00019178,2]
[365435309,1749671443440,-490.0,0.00019178,2]
[365435310,1749671443449,-420.0,0.00019178,2]
[365435311,1749671443458,-490.0,0.00019178,2]
[365435312,1749671443467,-480.0,0.00019178,2]
[365435313,1749671443476,-563.16610939,0.00019178,2]
[365435314,1749671443485,-151.0,0.00019178,2]
[365435315,1749671443494,-490.0,0.00019178,2]
[365435316,1749671443502,-490.0,0.00019178,2]
[365435317,1749671443511,-199.79262427,0.00019178,2]
[365435318,1749671443520,-490.0,0.00019178,2]
[365435319,1749671443530,-490.0,0.00019178,2]
[365435320,1749671443539,-490.0,0.00019178,2]
[365435321,1749671443548,-480.0,0.00019178,2]
[365435322,1749671443557,-490.0,0.00019178,2]
[365435323,1749671443566,-480.0,0.00019178,2]
[365435324,1749671443575,-150.0,0.00019178,2]
[365435325,1749671443584,-490.0,0.00019178,2]
[365435326,1749671443593,-490.0,0.00019178,2]
[365435327,1749671443602,-490.0,0.00019178,2]
[365435328,1749671443611,-480.0,0.00019178,2]
[365435329,1749671443620,-604.63,0.00019178,2]
[365435330,1749671443629,-480.0,0.00019178,2]
[365435331,1749671443638,-490.0,0.00019178,2]
[365435332,1749671443647,-480.0,0.00019178,2]
[365435333,1749671443657,-480.0,0.00019178,2]
[365435334,1749671443666,-490.0,0.00019178,2]
[365435335,1749671443675,-490.0,0.00019178,2]
[365435336,1749671443684,-490.0,0.00019178,2]
[365435337,1749671443694,-490.0,0.00019178,2]
[365435338,1749671443703,-490.0,0.00019178,2]
[365435339,1749671443712,-480.0,0.00019178,2]
[365435340,1749671443721,-480.0,0.00019178,2]
[365435341,1749671443730,-234.4316932,0.00019178,2]
[365435342,1749671443739,-490.0,0.00019178,2]
[365435343,1749671443748,-490.0,0.00019178,2]
[365435344,1749671443757,-264.634544,0.00019178,2]
[365435345,1749671443766,-480.0,0.00019178,2]
[365435346,1749671443775,-490.0,0.00019178,2]
[365435347,1749671443783,-490.0,0.00019178,2]
[365435348,1749671443793,-490.0,0.00019178,2]
[365435349,1749671443802,-490.0,0.00019178,2]
[365435350,1749671443811,-490.0,0.00019178,2]
[365435351,1749671443821,-490.0,0.00019178,2]
[365435352,1749671443830,-781.61,0.00019178,2]
[365435353,1749671443839,-490.0,0.00019178,2]
[365435354,1749671443849,-460.0,0.00019178,2]
[365435355,1749671443857,-490.0,0.00019178,2]
[365435356,1749671443867,-490.0,0.00019178,2]
[365435357,1749671443875,-490.0,0.00019178,2]
[365435358,1749671443885,-490.0,0.00019178,2]
[365435359,1749671443897,-490.0,0.00019178,2]
[365435360,1749671443906,-846.794702,0.00019178,2]
[365435361,1749671443915,-480.0,0.00019178,2]
[365435362,1749671443925,-544.36,0.00019178,2]
[365435363,1749671443936,-490.0,0.00019178,2]
[365435364,1749671443947,-490.0,0.00019178,2]
[365435365,1749671443956,-480.0,0.00019178,2]
[365435366,1749671443966,-490.0,0.00019178,2]
[365435367,1749671443975,-490.0,0.00019178,2]
[365435368,1749671443984,-490.0,0.00019178,2]
[365435369,1749671443993,-490.0,0.00019178,2]
[365435370,1749671444002,-490.0,0.00019178,2]
[365435371,1749671444011,-490.0,0.00019178,2]
[365435372,1749671444020,-490.0,0.00019178,2]
[365435373,1749671444029,-490.0,0.00019178,2]
[365435374,1749671444038,-541.56,0.00019178,2]
[365435375,1749671444047,-490.0,0.00019178,2]
[365435376,1749671444056,-490.0,0.00019178,2]
[365435377,1749671444065,-490.0,0.00019178,2]
[365435378,1749671444074,-1233.510414,0.00019178,2]
[365435379,1749671444083,-490.0,0.00019178,2]
[365435380,1749671444091,-480.0,0.00019178,2]
[365435381,1749671444100,-490.0,0.00019178,2]
[365435382,1749671444110,-1233.510414,0.00019178,2]
[365435383,1749671444119,-490.0,0.00019178,2]
[365435384,1749671444127,-490.0,0.00019178,2]
[365435385,1749671444136,-480.0,0.00019178,2]
[365435386,1749671444145,-512.35,0.00019178,2]
[365435387,1749671444154,-151.0,0.00019178,2]
[365435388,1749671444163,-490.0,0.00019178,2]
[365435389,1749671444172,-490.0,0.00019178,2]
[365435390,1749671444181,-490.0,0.00019178,2]
[365435391,1749671444191,-490.0,0.00019178,2]
[365435392,1749671444200,-151.0,0.00019178,2]
[365435393,1749671444210,-490.0,0.00019178,2]
[365435394,1749671444219,-490.0,0.00019178,2]
[365435395,1749671444227,-490.0,0.00019178,2]
[365435396,1749671444236,-480.0,0.00019178,2]
[365435397,1749671444244,-490.0,0.00019178,2]
[365435398,1749671444253,-490.0,0.00019178,2]
[365435399,1749671444263,-490.0,0.00019178,2]
[365435400,1749671444272,-1096.93695214,0.00019178,2]
[365435401,1749671444282,-490.0,0.00019178,2]
[365435402,1749671444291,-490.0,0.00019178,2]
[365435403,1749671444300,-151.0,0.00019178,2]
[365435404,1749671444310,-260.01915101,0.00019178,2]
[365435405,1749671444319,-490.0,0.00019178,2]
[365435406,1749671444329,-490.0,0.00019178,2]
[365435407,1749671444338,-150.0,0.00019178,2]
[365435408,1749671444347,-490.0,0.00019178,2]
[365435409,1749671444356,-200.0,0.00019178,2]
[365435410,1749671444364,-200.0,0.00019178,2]
[365435411,1749671444374,-200.45762208,0.00019178,2]
[365435412,1749671444383,-490.0,0.00019178,2]
[365435413,1749671444392,-200.0,0.00019178,2]
[365435414,1749671444401,-231.367543,0.00019178,2]
[365435415,1749671444411,-151.0,0.00019178,2]
[365435416,1749671444420,-150.0,0.00019178,2]
[365435417,1749671444430,-490.0,0.00019178,2]
[365435418,1749671444440,-177.30628,0.00019178,2]
[365435419,1749671444449,-490.0,0.00019178,2]
[365435420,1749671444459,-480.0,0.00019178,2]
[365435421,1749671444468,-480.0,0.00019178,2]
[365435422,1749671444477,-480.0,0.00019178,2]
[365435423,1749671444486,-490.0,0.00019178,2]
[365435424,1749671444495,-490.0,0.00019178,2]
[365435425,1749671444504,-449.77163145,0.00019178,2]
[365435426,1749671444513,-480.0,0.00019178,2]
[365435427,1749671444522,-480.0,0.00019178,2]
[365435428,1749671444531,-151.0,0.00019178,2]
[365435429,1749671444540,-490.0,0.00019178,2]
[365435430,1749671444550,-151.0,0.00019178,2]
[365435431,1749671444559,-490.26920681,0.00019178,2]
[365435432,1749671444568,-395.377164,0.00019178,2]
[365435433,1749671444577,-490.0,0.00019178,2]
[365435434,1749671444586,-480.0,0.00019178,2]
[365435435,1749671444596,-395.377164,0.00019178,2]
[365435436,1749671444605,-500.0,0.00019178,2]
[365435437,1749671444614,-668.41,0.00019178,2]
[365435438,1749671444624,-490.0,0.00019178,2]
[365435439,1749671444633,-490.0,0.00019178,2]
[365435440,1749671444642,-480.0,0.00019178,2]
[365435441,1749671444651,-480.0,0.00019178,2]
[365435442,1749671444660,-480.0,0.00019178,2]
[365435443,1749671444669,-500.0,0.00019178,2]
[365435444,1749671444679,-480.0,0.00019178,2]
[365435445,1749671444688,-480.0,0.00019178,2]
[365435446,1749671444698,-505.67,0.00019178,2]
[365435447,1749671444708,-480.0,0.00019178,2]
[365435448,1749671444718,-460.0,0.00019178,2]
[365435449,1749671444727,-490.0,0.00019178,2]
[365435450,1749671444736,-490.0,0.00019178,2]
[365435451,1749671444746,-490.0,0.00019178,2]
[365435452,1749671444755,-500.0,0.00019178,2]
[365435453,1749671444764,-250.0,0.00019178,2]
[365435454,1749671444774,-480.0,0.00019178,2]
[365435455,1749671444783,-238.08,0.00019178,2]